bitfinex-derivatives/quotes_BNBF0:USTF0_20251219
["timestamp","ask_amount","ask_price","bid_price","bid_amount"]
[1766168523066,0.88091981,848.59,847.54,0.8726489]
[1766168524369,0.88091981,848.59,847.53,0.8726489]
[1766168524869,0.20513667,848.66,847.38,1.16214545]
[1766168525069,0.88145476,848.59,847.53,0.87762261]
[1766168526769,0.88145476,848.55,847.49,0.87762261]
[1766168526971,0.88145476,848.52,847.46,0.87762261]
[1766168527267,0.88145476,848.47,847.41,0.87762261]
[1766168531270,0.88145476,848.46,847.41,0.87762261]
[1766168532273,0.88145476,848.46,847.42,0.87762261]
[1766168534778,0.88145476,848.46,847.43,0.87762261]
[1766168534973,0.88145476,848.6,847.56,0.87762261]
[1766168535379,0.88145476,848.59,847.57,0.87762261]
[1766168536177,0.88145476,848.59,847.58,0.87762261]
[1766168536578,0.88145476,848.58,847.57,0.87762261]
[1766168546186,0.88145476,848.59,847.57,0.87762261]
[1766168555985,0.88145476,848.58,847.57,0.87762261]
[1766168556488,0.88145476,848.58,847.58,0.87762261]
[1766168561193,0.88145476,848.58,847.59,0.87762261]
[1766168561388,0.88145476,848.57,847.59,0.87762261]
[1766168565298,0.88145476,848.56,847.6,0.87762261]
[1766168566598,0.88145476,848.57,847.61,0.87762261]
[1766168567995,0.88145476,848.6,847.64,0.87762261]
[1766168568200,0.20513667,848.66,847.72,0.87762261]
[1766168568801,0.88145476,848.68,847.72,0.87762261]
[1766168569302,0.88145476,848.67,847.72,0.87762261]
[1766168570101,0.88145476,848.68,847.73,0.87762261]
[1766168571202,0.88145476,848.68,847.74,0.87762261]
[1766168572803,0.88145476,848.63,847.69,0.87762261]
[1766168575302,0.88145476,848.62,847.69,0.87762261]
[1766168576308,0.88145476,848.62,847.7,0.87762261]
[1766168577410,0.88145476,848.63,847.71,0.87762261]
[1766168578509,0.88145476,848.66,847.75,0.87762261]
[1766168578808,0.88145476,848.67,847.75,0.87762261]
[1766168581412,0.88145476,848.67,847.59,1.16214545]
[1766168581413,0.88145476,848.67,847.74,0.87762261]
[1766168582313,0.88145476,848.67,847.75,0.87762261]
[1766168583214,0.88145476,848.67,847.74,0.87762261]
[1766168584513,0.88145476,848.63,847.7,0.87762261]
[1766168586511,0.88145476,848.59,847.66,0.87762261]
[1766168588312,0.88145476,848.59,847.67,0.87762261]
[1766168589315,0.88145476,848.58,847.67,0.87762261]
[1766168590215,0.88145476,848.58,847.68,0.87762261]
[1766168590411,0.88145476,848.55,847.65,0.87762261]
[1766168591313,0.88145476,848.54,847.65,0.87762261]
[1766168592111,0.88145476,848.47,847.58,0.87762261]
[1766168592310,0.88145476,848.47,847.43,1.16214545]
[1766168592311,0.88145476,848.47,847.59,0.87762261]
[1766168593212,0.88145476,848.46,847.59,0.87762261]
[1766168594015,0.88145476,848.24,847.37,0.87762261]
[1766168594210,0.88145476,848.23,847.38,0.87762261]
[1766168594510,0.88145476,848.25,847.36,0.87762261]
[1766168595414,0.88145476,848.27,847.34,0.87762261]
[1766168596515,0.88145476,848.27,846.49,0.0141998]
[1766168596516,0.88145476,848.34,847.39,0.87762261]
[1766168596716,0.88145476,848.32,847.37,0.87762261]
[1766168597414,0.88145476,848.33,847.36,0.87762261]
[1766168598316,0.88145476,848.34,847.36,0.87762261]
[1766168599519,0.88145476,848.34,847.35,0.87762261]
[1766168600319,0.88145476,848.34,847.2,1.16214545]
[1766168600320,0.88145476,848.35,847.34,0.87762261]
[1766168601624,0.88145476,848.4,847.38,0.87762261]
[1766168602521,0.88145476,848.41,847.38,0.87762261]
[1766168604328,0.88145476,848.41,847.37,0.87762261]
[1766168606228,0.88145476,848.42,847.37,0.87762261]
[1766168606429,0.88145476,848.49,847.44,0.87762261]
[1766168608426,0.88150342,848.49,847.44,0.87910755]
[1766168610534,0.88150342,848.58,847.52,0.87910755]
[1766168610833,0.88150342,848.58,847.53,0.87910755]
[1766168612230,0.88150342,848.5,847.45,0.87910755]
[1766168617937,0.88150342,848.5,847.44,0.87910755]
[1766168622640,0.88150342,848.47,847.41,0.87910755]
[1766168622840,0.88150342,848.44,847.38,0.87910755]
[1766168624041,1.16205107,848.6,847.23,1.16214545]
[1766168624246,0.88144286,848.44,847.38,0.87857451]
[1766168625249,0.88144286,848.45,847.38,0.87857451]
[1766168629553,0.88144286,848.44,847.38,0.87857451]
[1766168631247,0.88144286,848.44,847.23,1.16214545]
[1766168631248,0.88144286,848.44,847.39,0.87857451]
[1766168632353,0.88144286,848.43,847.39,0.87857451]
[1766168636356,0.88144286,848.42,847.4,0.87857451]
[1766168637051,0.88144286,848.43,847.4,0.87857451]
[1766168637256,0.88144286,848.42,847.4,0.87857451]
[1766168638554,0.88144286,848.42,847.41,0.87857451]
[1766168639358,0.88144286,848.41,847.41,0.87857451]
[1766168641260,0.88144286,848.41,847.42,0.87857451]
[1766168641962,0.88144286,848.5,847.51,0.87857451]
[1766168642359,0.88144286,848.5,847.52,0.87857451]
[1766168642582,0.88144286,848.58,847.61,0.87857451]
[1766168645368,0.88144286,848.57,847.61,0.87857451]
[1766168646369,0.88144286,848.57,847.62,0.87857451]
[1766168646865,0.88144286,848.57,847.61,0.87857451]
[1766168647371,0.88144286,848.57,847.62,0.87857451]
[1766168648166,0.88144286,848.57,847.61,0.87857451]
[1766168648368,0.88144286,848.57,847.62,0.87857451]
[1766168648870,0.88144286,848.57,847.61,0.87857451]
[1766168649472,0.88144286,848.57,847.62,0.87857451]
[1766168650274,0.88144286,848.57,847.61,0.87857451]
[1766168650473,0.88144286,848.57,847.62,0.87857451]
[1766168652376,0.88144286,848.57,847.61,0.87857451]
[1766168652674,0.88144286,848.57,847.62,0.87857451]
[1766168653169,0.88144286,848.58,847.61,0.87857451]
[1766168654478,0.88144286,848.57,847.61,0.87857451]
[1766168655180,0.88144286,848.58,847.61,0.87857451]
[1766168655375,0.88144286,848.57,847.62,0.87857451]
[1766168655779,0.88144286,848.57,847.61,0.87857451]
[1766168656281,0.88144286,848.57,847.62,0.87857451]
[1766168656780,0.88144286,848.57,847.61,0.87857451]
[1766168657378,0.88144286,848.57,847.62,0.87857451]
[1766168658278,0.88144286,848.57,847.61,0.87857451]
[1766168658477,0.88144286,848.57,847.62,0.87857451]
[1766168659280,0.88144286,848.57,847.61,0.87857451]
[1766168659483,0.88144286,848.56,847.62,0.87857451]
[1766168660192,0.88144286,848.57,847.62,0.87857451]
[1766168660380,0.88144286,848.56,847.62,0.87857451]
[1766168662880,0.88144286,848.57,847.63,0.87857451]
[1766168668888,1.16205107,848.73,847.48,1.16214545]
[1766168669190,0.88251781,848.57,847.63,0.879039]
[1766168670288,0.88251781,848.58,847.63,0.879039]
[1766168672289,0.88251781,848.58,847.62,0.879039]
[1766168684308,0.88251781,848.57,847.62,0.879039]
[1766168685305,0.88251781,848.57,847.63,0.879039]
[1766168687004,0.88251781,848.54,847.6,0.879039]
[1766168688306,0.88251781,848.53,847.61,0.879039]
[1766168689406,0.88251781,848.5,847.58,0.879039]
[1766168689706,0.88251781,848.47,847.55,0.879039]
[1766168690312,0.88251781,848.47,847.56,0.879039]
[1766168690909,1.16205107,848.62,847.55,0.879039]
[1766168690910,0.88251781,848.46,847.55,0.879039]
[1766168691110,0.88251781,848.41,847.5,0.879039]
[1766168691315,0.88251781,848.42,847.5,0.879039]
[1766168691511,0.88251781,848.41,847.51,0.879039]
[1766168692211,0.88251781,848.41,847.5,0.879039]
[1766168692511,0.88251781,848.41,847.51,0.879039]
[1766168695415,0.88251781,848.4,847.52,0.879039]
[1766168696216,0.88251781,848.4,847.51,0.879039]
[1766168696516,0.88251781,848.4,847.52,0.879039]
[1766168698413,0.88251781,848.39,847.52,0.879039]
[1766168699214,0.88251781,848.4,847.52,0.879039]
[1766168699514,0.88251781,848.39,847.52,0.879039]
[1766168701214,0.88251781,848.39,847.53,0.879039]
[1766168702319,0.88251781,848.39,847.52,0.879039]
[1766168703019,0.88251781,848.39,847.53,0.879039]
[1766168703220,0.88251781,848.52,847.65,0.879039]
[1766168704616,0.88251781,848.52,847.66,0.879039]
[1766168712230,0.88251781,848.53,847.67,0.879039]
[1766168714930,0.88251781,848.64,847.77,0.879039]
[1766168715232,0.88251781,848.65,847.77,0.879039]
[1766168716229,0.88251781,848.65,847.76,0.879039]
[1766168716936,0.88251781,848.65,847.77,0.879039]
[1766168717432,0.88251781,848.66,847.76,0.879039]
[1766168719434,0.88251781,848.66,847.75,0.879039]
[1766168720436,0.88251781,848.67,847.75,0.879039]
[1766168723340,0.88251781,848.67,847.74,0.879039]
[1766168724245,0.88251781,848.68,847.74,0.879039]
[1766168724445,0.88251781,848.67,847.74,0.879039]
[1766168725244,0.88251781,848.68,847.74,0.879039]
[1766168726344,0.88251781,848.68,847.73,0.879039]
[1766168729347,0.88251781,848.69,847.73,0.879039]
[1766168731251,0.88251781,848.69,847.72,0.879039]
[1766168733646,0.88251781,848.75,847.78,0.879039]
[1766168734350,0.88251781,848.75,847.77,0.879039]
[1766168734549,0.88251781,848.75,847.78,0.879039]
[1766168734748,0.20510826,848.77,847.8,0.879039]
[1766168736054,0.20510826,848.77,847.82,0.879039]
[1766168736253,0.20510826,848.77,847.81,0.879039]
[1766168737252,0.20510826,848.77,847.8,0.879039]
[1766168737649,0.20510826,848.77,847.8,0.876599]
[1766168739354,0.20510826,848.77,847.79,0.876599]
[1766168742256,0.20510826,848.77,847.78,0.876599]
[1766168745153,0.20510826,848.77,847.77,0.876599]
[1766168747255,0.20510826,848.77,847.76,0.876599]
[1766168747555,0.88171649,848.75,847.68,0.876599]
[1766168751257,0.88171649,848.75,847.69,0.876599]
[1766168752261,0.88171649,848.74,847.69,0.876599]
[1766168753262,0.88171649,848.74,847.7,0.876599]
[1766168754361,0.88171649,848.73,847.7,0.876599]
[1766168755260,0.88171649,848.73,847.71,0.876599]
[1766168756360,0.88171649,848.72,847.71,0.876599]
[1766168757165,0.88171649,848.72,847.72,0.876599]
[1766168757367,0.88171649,848.71,847.72,0.876599]
[1766168758264,0.88171649,848.7,847.72,0.876599]
[1766168759369,0.88171649,848.69,847.73,0.876599]
[1766168760570,0.88171649,848.67,847.7,0.876599]
[1766168760767,0.88171649,848.66,847.7,0.876599]
[1766168761473,0.88171649,848.6,847.65,0.876599]
[1766168761773,0.88171649,848.63,847.68,0.876599]
[1766168762473,0.88171649,848.62,847.69,0.876599]
[1766168763267,0.88171649,848.62,847.7,0.876599]
[1766168764273,0.88171649,848.61,847.7,0.876599]
[1766168766374,0.88171649,848.61,847.71,0.876599]
[1766168768371,0.88171649,848.6,847.71,0.876599]
[1766168770277,0.88171649,848.6,847.72,0.876599]
[1766168772379,0.88171649,848.59,847.72,0.876599]
[1766168772584,0.88171649,848.6,847.72,0.876599]
[1766168772880,0.88171649,848.63,847.75,0.876599]
[1766168773074,0.88171649,848.69,847.81,0.876599]
[1766168773275,0.88171649,848.68,847.81,0.876599]
[1766168775579,0.88171649,848.76,847.89,0.876599]
[1766168776082,1.16205107,848.92,847.9,0.876599]
[1766168776277,1.16205107,848.92,847.89,0.876599]
[1766168779282,1.16205107,848.92,847.88,0.876599]
[1766168779882,0.88299274,848.77,847.88,0.876599]
[1766168782485,0.88299274,848.77,847.87,0.876599]
[1766168785486,0.88299274,848.78,847.87,0.876599]
[1766168787096,0.20507623,848.93,847.93,0.876599]
[1766168787287,0.20507623,848.93,847.2,54.69581137]
[1766168787288,0.20507623,848.93,847.95,0.876599]
[1766168787491,0.20507623,848.93,847.94,0.876599]
[1766168788089,0.20507623,848.93,848.0,0.876599]
[1766168788295,0.20507623,848.93,847.99,0.876599]
[1766168788991,0.20507623,848.93,848.0,0.876599]
[1766168789391,0.20507623,848.93,847.99,0.876599]
[1766168790694,0.20507623,848.93,847.98,0.876599]
[1766168792297,0.20507623,848.93,847.97,0.876599]
[1766168794498,0.20507623,848.93,847.96,0.876599]
[1766168796405,0.20507623,848.93,847.95,0.876599]
[1766168796705,0.20507623,848.93,847.98,0.876599]
[1766168798306,0.20507623,848.93,847.97,0.876599]
[1766168800405,0.20507623,848.93,847.96,0.876599]
[1766168802012,1.16205107,849.19,847.96,0.876599]
[1766168802310,0.2050128,849.14,848.1,0.876599]
[1766168802909,1.16205107,849.36,848.1,0.876599]
[1766168803108,0.00903356,849.99,848.14,0.876599]
[1766168803109,0.2049814,849.24,848.14,0.876599]
[1766168803313,0.2049814,849.24,848.13,0.876599]
[1766168803509,0.2049814,849.24,848.14,0.876599]
[1766168804412,0.2049814,849.24,848.13,0.876599]
[1766168805312,0.2049814,849.24,848.12,0.876599]
[1766168806313,0.2049814,849.24,848.11,0.876599]
[1766168807311,0.2049814,849.24,848.1,0.876599]
[1766168808314,0.2049814,849.24,848.09,0.876599]
[1766168809314,0.2049814,849.24,848.11,0.876599]
[1766168809610,0.2049814,849.24,848.16,0.876599]
[1766168810316,0.2049814,849.24,847.31,0.0098888]
[1766168810317,0.2049814,849.24,848.15,0.876599]
[1766168811315,0.2049814,849.24,848.14,0.876599]
[1766168812418,0.2049814,849.24,848.13,0.876599]
[1766168813415,0.2049814,849.24,848.12,0.876599]
[1766168815322,0.2049814,849.24,848.11,0.876599]
[1766168815967,1.16205107,849.95,848.42,0.876599]
[1766168816218,0.20491984,849.67,848.58,0.876599]
[1766168816419,1.16205107,850.2,848.59,0.876599]
[1766168816723,0.20483662,849.81,848.69,0.876599]
[1766168817324,0.20483662,849.81,848.64,0.876599]
[1766168817722,0.20483662,849.81,848.63,0.876599]
[1766168818124,1.16205107,850.33,848.63,0.876599]
[1766168818324,0.20480768,849.93,848.59,0.876599]
[1766168819327,0.20480768,849.93,848.55,0.876599]
[1766168819523,0.20480768,849.93,848.56,0.876599]
[1766168819826,0.20480768,849.93,848.55,0.876599]
[1766168820027,0.20480768,849.93,848.38,0.876599]
[1766168820826,0.20480768,849.93,848.24,0.876599]
[1766168821526,0.20480768,849.93,848.2,0.876599]
[1766168821729,0.20480768,849.93,848.19,0.876599]
[1766168821925,0.20480768,849.93,848.1,0.876599]
[1766168822128,1.16205107,849.89,848.05,0.876599]
[1766168822329,1.16205107,849.89,847.18,2.92000285]
[1766168822330,1.16205107,849.79,847.95,0.876599]
[1766168824349,1.16205107,849.79,847.96,0.876599]
[1766168824527,1.16205107,849.79,847.95,0.876599]
[1766168824738,1.16205107,849.72,847.89,0.876599]
[1766168825133,1.16205107,849.72,847.88,0.876599]
[1766168825334,1.16205107,849.71,847.89,0.876599]
[1766168825736,1.16205107,849.68,847.86,0.876599]
[1766168826330,1.16205107,849.65,847.84,0.876599]
[1766168827336,1.16205107,849.64,847.84,0.876599]
[1766168828236,1.16205107,849.64,847.85,0.876599]
[1766168828437,1.16205107,849.51,847.73,0.876599]
[1766168829032,1.75062805,849.66,847.72,0.876599]
[1766168829033,1.16205107,849.5,847.72,0.876599]
[1766168829234,1.16205107,849.5,847.73,0.876599]
[1766168830236,1.16205107,849.49,847.74,0.876599]
[1766168831237,1.16205107,849.48,847.74,0.876599]
[1766168831540,1.16205107,849.48,847.75,0.876599]
[1766168832539,1.16205107,849.47,847.76,0.876599]
[1766168834340,1.16205107,849.46,847.77,0.86896029]
[1766168835540,1.16205107,849.46,847.78,0.86896029]
[1766168836245,1.16205107,849.45,847.78,0.86896029]
[1766168836946,1.16205107,849.5,847.83,0.86896029]
[1766168837345,1.16205107,849.5,847.84,0.86896029]
[1766168839244,1.16205107,849.49,847.84,0.86896029]
[1766168839854,1.16205107,849.49,847.85,0.86896029]
[1766168841450,1.16205107,849.48,847.85,0.86896029]
[1766168842450,1.16205107,849.48,847.86,0.86896029]
[1766168843347,1.16205107,849.47,847.86,0.86896029]
[1766168844248,1.16205107,849.47,847.87,0.86896029]
[1766168845551,1.16205107,849.46,847.87,0.86896029]
[1766168846251,1.16205107,849.46,847.88,0.86896029]
[1766168848352,1.16205107,849.45,847.88,0.86896029]
[1766168849954,1.16205107,849.45,847.89,0.86896029]
[1766168855257,1.16205107,849.44,847.89,0.86896029]
[1766168855757,1.16205107,849.45,847.89,0.86896029]
[1766168856257,1.16205107,849.44,847.89,0.86896029]
[1766168856854,1.16205107,849.44,847.9,0.86896029]
[1766168866467,1.16205107,849.45,847.9,0.86896029]
[1766168866867,1.16205107,849.44,847.89,0.86896029]
[1766168868271,1.16205107,849.44,847.9,0.86896029]
[1766168868564,1.16205107,849.44,847.89,0.86896029]
[1766168872173,1.16205107,849.44,847.9,0.86896029]
[1766168872368,1.16205107,849.44,847.89,0.86896029]
[1766168873270,1.16205107,849.44,847.9,0.86896029]
[1766168873469,1.16205107,849.44,847.89,0.86896029]
[1766168873773,1.16205107,849.36,847.82,0.86896029]
[1766168875075,1.16205107,849.36,847.81,0.86896029]
[1766168875275,1.16205107,849.36,847.82,0.86896029]
[1766168875476,1.16205107,849.36,847.81,0.86896029]
[1766168876279,1.16205107,849.36,847.66,1.15626946]
[1766168876280,1.16205107,849.33,847.84,0.86896029]
[1766168877378,1.16205107,849.2,847.79,0.86896029]
[1766168878179,1.16205107,849.21,847.79,0.86896029]
[1766168878374,1.16205107,849.16,847.84,0.86896029]
[1766168878576,1.16205107,849.15,847.84,0.86896029]
[1766168879283,1.16205107,849.15,847.83,0.86896029]
[1766168879476,1.16205107,849.05,847.86,0.86896029]
[1766168881480,1.16205107,849.02,847.89,0.86896029]
[1766168882181,1.16205107,849.01,847.91,0.86896029]
[1766168882381,1.16205107,849.01,847.9,0.86896029]
[1766168883185,1.16205107,849.0,847.91,0.86896029]
[1766168883484,1.16205107,849.01,847.9,0.86896029]
[1766168884284,1.16205107,849.0,847.92,0.86896029]
[1766168884485,1.16205107,849.0,847.76,1.15626946]
[1766168884486,1.16205107,849.0,847.91,0.86896029]
[1766168887288,1.16205107,849.0,847.92,0.86896029]
[1766168887488,1.16205107,849.0,847.91,0.86896029]
[1766168888188,1.16205107,849.0,847.92,0.86896029]
[1766168888388,1.16205107,849.01,847.91,0.86896029]
[1766168890288,1.16205107,849.01,847.6,1.75385677]
[1766168890289,1.16205107,849.01,847.9,0.86896029]
[1766168891291,1.16205107,849.02,847.9,0.86896029]
[1766168893290,1.16205107,849.02,847.89,0.86896029]
[1766168894392,1.16205107,849.03,847.89,0.86896029]
[1766168896896,1.16205107,849.02,847.88,0.86896029]
[1766168897393,1.16205107,849.02,847.87,0.86896029]
[1766168900294,1.16205107,849.03,847.87,0.86896029]
[1766168901293,1.16205107,849.03,847.86,0.86896029]
[1766168901494,1.16205107,849.02,847.86,0.86896029]
[1766168903099,1.16205107,849.02,847.71,1.15626946]
[1766168903297,1.16205107,849.03,847.86,0.87721327]
[1766168910304,1.16205107,849.02,847.86,0.87721327]
[1766168910909,1.16205107,848.8,847.7,1.15626946]
[1766168911108,1.16205107,848.8,847.63,0.87721327]
[1766168911409,1.16205107,848.81,847.62,0.87721327]
[1766168911806,1.16205107,848.81,847.63,0.87721327]
[1766168912311,1.16205107,848.82,847.62,0.87721327]
[1766168912611,1.16205107,848.77,847.58,0.87721327]
[1766168913207,1.16205107,848.78,847.57,0.87721327]
[1766168913606,1.75062805,848.94,847.57,0.87721327]
[1766168913607,1.16205107,848.79,847.57,0.87721327]
[1766168913913,1.16205107,848.8,847.58,0.87721327]
[1766168914310,1.16205107,848.8,847.57,0.87721327]
[1766168914508,1.16205107,848.83,847.6,0.87721327]
[1766168915317,1.16205107,848.84,847.59,0.87721327]
[1766168917319,1.16205107,848.85,847.59,0.87721327]
[1766168917914,1.16205107,848.85,847.58,0.87721327]
[1766168920322,1.16205107,848.85,847.57,0.87721327]
[1766168922321,1.16205107,848.86,847.57,0.87721327]
[1766168925121,1.16205107,848.89,847.6,0.87721327]
[1766168925926,1.16205107,848.89,847.61,0.87721327]
[1766168926524,1.16205107,849.03,847.75,0.87721327]
[1766168927030,1.16205107,849.0,847.72,0.87721327]
[1766168927226,1.16205107,848.99,847.72,0.87721327]
[1766168928231,1.16205107,848.99,847.73,0.87721327]
[1766168928828,1.16205107,849.0,847.74,0.87721327]
[1766168929033,1.16205107,849.0,847.75,0.87721327]
[1766168930330,1.16205107,848.99,847.76,0.87721327]
[1766168931334,1.16205107,848.98,847.76,0.87721327]
[1766168932235,1.16205107,848.98,847.77,0.87721327]
[1766168932835,1.16205107,848.97,847.77,0.87721327]
[1766168933230,1.16205107,848.97,847.78,0.87721327]
[1766168934336,1.16205107,848.96,847.78,0.87721327]
[1766168935435,1.16205107,848.96,847.79,0.87721327]
[1766168936440,1.16205107,848.95,847.79,0.87721327]
[1766168937342,1.16205107,848.95,847.8,0.87721327]
[1766168946250,1.16205107,848.94,847.8,0.87721327]
[1766168946450,1.16205107,848.95,847.81,0.87721327]
[1766168947250,1.16205107,848.94,847.81,0.87721327]
[1766168948049,1.16205107,849.01,847.87,0.87721327]
[1766168951255,1.16205107,849.02,847.87,0.87721327]
[1766168952955,1.16205107,849.01,847.86,0.87721327]
[1766168957257,1.16205107,849.01,847.85,0.87721327]
[1766168970267,1.16205107,849.02,847.85,0.87721327]
[1766168971268,1.16205107,849.01,847.85,0.87721327]
[1766168973566,1.16205107,849.01,847.86,0.87721327]
[1766168974270,1.16205107,849.0,847.86,0.87721327]
[1766168975269,1.16205107,849.0,847.87,0.87721327]
[1766168976370,1.16205107,848.99,847.87,0.87721327]
[1766168977570,1.16205107,848.96,847.85,0.87721327]
[1766168978272,1.16205107,848.95,847.85,0.87721327]
[1766168979271,1.16205107,848.94,847.86,0.87721327]
[1766168981275,1.16205107,848.93,847.87,0.87721327]
[1766168982373,1.16205107,848.92,847.88,0.87721327]
[1766168983370,1.16205107,848.91,847.89,0.87721327]
[1766168984373,1.16205107,848.9,847.9,0.87721327]
[1766168985271,1.16205107,848.89,847.91,0.87721327]
[1766168986370,1.16205107,848.87,847.93,0.87721327]
[1766168987676,1.16205107,848.87,847.78,1.15626946]
[1766168987876,1.16205107,848.84,847.9,0.87947147]
[1766168988978,1.16205107,848.81,847.87,0.87947147]
[1766168989372,1.16205107,848.82,847.87,0.87947147]
[1766168990177,1.16205107,848.81,847.86,0.87947147]
[1766168990375,1.16205107,848.8,847.84,0.87947147]
[1766168994282,1.16205107,848.81,847.84,0.87947147]
[1766168995376,1.16205107,848.81,847.83,0.87947147]
[1766169000593,1.16205107,848.82,847.83,0.87947147]
[1766169002493,1.16205107,848.82,847.82,0.87947147]
[1766169006798,1.16205107,848.82,847.81,0.87947147]
[1766169007298,1.16205107,848.83,847.81,0.87947147]
[1766169011201,1.16205107,848.83,847.51,1.75385677]
[1766169011202,1.16205107,848.83,847.82,0.87947147]
[1766169011698,1.16205107,848.84,847.83,0.87947147]
[1766169012002,1.16205107,848.87,847.86,0.87947147]
[1766169012498,1.16205107,848.99,847.98,0.87947147]
[1766169012699,1.16205107,849.01,848.0,0.87947147]
[1766169012903,1.16205107,849.01,847.99,0.87947147]
[1766169014300,1.16205107,849.02,847.99,0.87947147]
[1766169015300,1.16205107,849.02,847.98,0.87947147]
[1766169017304,1.16205107,849.03,847.98,0.87947147]
[1766169018702,0.20504843,848.91,847.98,0.87947147]
[1766169019609,0.20504843,848.91,847.97,0.87947147]
[1766169022410,0.20504843,848.91,847.96,0.87947147]
[1766169026011,0.20504843,848.91,848.06,0.87947147]
[1766169026321,0.20504843,848.91,847.31,0.20503937]
[1766169026322,1.16205107,849.28,848.16,0.87947147]
[1766169026613,0.20500616,849.19,848.16,0.87947147]
[1766169027414,0.20500616,849.19,848.14,0.87947147]
[1766169028509,0.20500616,849.19,848.13,0.87947147]
[1766169028713,0.20500616,849.19,848.1,0.87947147]
[1766169029515,0.20500616,849.19,848.09,0.87947147]
[1766169029713,0.20500616,849.19,848.03,0.87947147]
[1766169031418,0.20500616,849.19,848.02,0.87947147]
[1766169033519,0.20500616,849.19,848.01,0.87947147]
[1766169036319,0.20500616,849.19,848.0,0.87947147]
[1766169038323,0.20500616,849.19,847.99,0.87947147]
[1766169041326,0.20500616,849.19,847.98,0.87947147]
[1766169045123,0.20500616,849.19,847.97,0.87947147]
[1766169047729,0.20500616,849.19,847.96,0.87947147]
[1766169049733,0.20500616,849.19,847.9,0.87947147]
[1766169049934,1.36705723,849.19,847.88,0.87947147]
[1766169050333,1.16205107,849.18,847.88,0.87947147]
[1766169053334,1.16205107,849.18,847.89,0.87947147]
[1766169053632,1.16205107,849.17,847.89,0.87947147]
[1766169053832,1.16205107,849.18,847.89,0.87947147]
[1766169054041,1.16205107,849.17,847.89,0.87947147]
[1766169056233,1.16205107,849.16,847.9,0.87947147]
[1766169056936,0.20500616,849.19,847.85,0.87947147]
[1766169056937,1.16205107,849.12,847.85,0.87947147]
[1766169057334,1.16205107,849.12,847.86,0.87947147]
[1766169058239,1.16205107,849.11,847.86,0.87947147]
[1766169059339,1.16205107,849.11,847.87,0.87947147]
[1766169061539,1.16205107,849.1,847.87,0.87947147]
[1766169062342,1.16205107,849.1,847.88,0.87947147]
[1766169063340,1.16205107,849.09,847.88,0.87947147]
[1766169064343,1.16205107,849.09,847.89,0.87947147]
[1766169065344,1.16205107,849.08,847.89,0.87947147]
[1766169066445,1.16205107,849.07,847.9,0.87947147]
[1766169067545,1.16205107,849.07,847.91,0.87947147]
[1766169068369,1.16205107,849.06,847.91,0.87947147]
[1766169069349,1.16205107,849.06,847.92,0.87947147]
[1766169069549,1.16205107,849.05,847.92,0.87947147]
[1766169070345,1.16205107,849.05,847.62,1.75385677]
[1766169070346,1.16205107,849.05,847.93,0.87947147]
[1766169071447,1.16205107,849.04,847.94,0.87947147]
[1766169074853,1.16205107,849.04,847.95,0.87947147]
[1766169075051,1.16205107,849.04,847.31,0.20503937]
[1766169075052,1.16205107,849.09,847.99,0.87947147]
[1766169077151,1.16205107,849.08,847.99,0.87947147]
[1766169077654,0.88239259,848.93,847.99,0.87947147]
[1766169078256,0.88239259,848.93,847.99,0.87544706]
[1766169078457,0.88239259,848.89,847.95,0.87544706]
[1766169080759,1.16205107,849.04,847.95,0.87544706]
[1766169087367,1.16205107,849.03,847.96,0.87544706]
[1766169088464,1.16205107,849.04,847.97,0.87544706]
[1766169088663,1.16205107,849.07,848.0,0.87544706]
[1766169089363,0.20500616,849.19,848.0,0.87544706]
[1766169089364,1.16205107,849.06,848.0,0.87544706]
[1766169090363,1.16205107,849.06,848.01,0.87544706]
[1766169090569,1.16205107,849.06,848.0,0.87544706]
[1766169091067,1.16205107,849.07,848.01,0.87544706]
[1766169092469,1.16205107,849.06,848.01,0.87544706]
[1766169097469,1.16205107,849.05,848.01,0.87544706]
[1766169099269,1.16205107,849.05,848.02,0.87544706]
[1766169100473,1.16205107,849.04,848.02,0.87544706]
[1766169102379,1.16205107,849.04,848.03,0.87544706]
[1766169103175,1.16205107,849.04,848.02,0.87544706]
[1766169103376,1.16205107,849.04,848.03,0.87544706]
[1766169104075,1.16205107,849.03,848.03,0.87544706]
[1766169106279,1.16205107,849.02,848.04,0.87544706]
[1766169107380,1.16205107,849.02,848.05,0.87544706]
[1766169108382,1.16205107,849.01,848.05,0.87544706]
[1766169109486,1.16205107,849.01,848.06,0.87544706]
[1766169112283,1.16205107,849.01,848.05,0.87544706]
[1766169112479,1.16205107,849.01,848.06,0.87544706]
[1766169114481,1.16205107,849.01,848.05,0.87544706]
[1766169114684,0.8840329,848.75,847.95,0.87544706]
[1766169115385,0.8840329,848.75,847.94,0.87544706]
[1766169117385,0.8840329,848.76,847.94,0.87544706]
[1766169118487,0.8840329,848.76,847.93,0.87544706]
[1766169118881,0.8840329,848.76,847.94,0.87544706]
[1766169119387,0.8840329,848.76,847.93,0.87544706]
[1766169120685,0.8840329,848.76,847.94,0.87544706]